bitfinex/quotes_BTCUSD_20240819
["timestamp","ask_amount","ask_price","bid_price","bid_amount"]
[1724037169093,1.42239062,58775.0,58774.0,0.06503662]
[1724037169300,1.42339062,58775.0,58774.0,0.07203662]
[1724037169967,1.58154093,58775.0,58774.0,0.07203662]
[1724037170388,1.58454093,58775.0,58774.0,0.07203662]
[1724037170606,1.68154093,58775.0,58774.0,0.07203662]
[1724037170814,1.68454093,58775.0,58774.0,0.07203662]
[1724037171024,1.92473693,58775.0,58774.0,0.015]
[1724037171226,2.06313141,58775.0,58774.0,0.015]
[1724037171662,3.34263141,58775.0,58774.0,0.015]
[1724037171884,3.34008361,58775.0,58774.0,0.015]
[1724037173827,3.35032707,58775.0,58774.0,0.015]
[1724037175367,3.35032707,58775.0,58774.0,0.0159042]
[1724037176055,3.34732707,58775.0,58774.0,0.0159042]
[1724037176259,3.14061522,58775.0,58774.0,0.0159042]
[1724037176464,3.34274526,58775.0,58774.0,0.0159042]
[1724037176674,0.96757095,58775.0,58774.0,0.0159042]
[1724037176886,0.91726376,58775.0,58774.0,0.1566042]
[1724037177314,1.01925586,58775.0,58774.0,0.1566042]
[1724037177999,1.04225586,58775.0,58774.0,0.1566042]
[1724037178417,0.80405986,58775.0,58774.0,0.1566042]
[1724037178663,0.54006586,58775.0,58774.0,0.1566042]
[1724037178872,0.49023026,58775.0,58774.0,0.1566042]
[1724037179072,0.39023026,58775.0,58774.0,0.1566042]
[1724037179278,0.44122821,58775.0,58774.0,0.1566042]
[1724037179483,0.15483226,58775.0,58774.0,0.1566042]
[1724037179696,0.15483226,58775.0,58774.0,0.9903042]
[1724037179697,0.03216557,58775.0,58774.0,0.9903042]
[1724037179917,0.07649904,58782.0,58781.0,0.59543]
[1724037180122,0.000822,58783.0,58782.0,0.1447]
[1724037180295,0.000822,58783.0,58782.0,0.98169004]
[1724037180503,0.000822,58783.0,58782.0,1.09799004]
[1724037180705,0.000822,58783.0,58782.0,0.98169004]
[1724037180888,0.000822,58783.0,58782.0,0.978288]
[1724037181087,0.000822,58783.0,58782.0,0.74012]
[1724037181692,0.001822,58783.0,58782.0,0.75412]
[1724037181990,0.002822,58783.0,58782.0,0.76812]
[1724037182369,0.001822,58783.0,58782.0,0.75412]
[1724037182775,0.002822,58783.0,58782.0,0.76812]
[1724037183733,0.001822,58783.0,58782.0,0.75412]
[1724037183932,0.000822,58783.0,58782.0,0.74012]
[1724037184795,0.000822,58783.0,58782.0,0.75412]
[1724037184921,0.001822,58783.0,58782.0,0.75412]
[1724037185322,0.000822,58783.0,58782.0,0.75412]
[1724037185751,0.001822,58783.0,58782.0,1.006288]
[1724037188979,0.001822,58783.0,58782.0,0.76812]
[1724037189154,0.001822,58783.0,58782.0,0.529952]
[1724037189560,0.001822,58783.0,58782.0,0.76812]
[1724037190131,0.001822,58783.0,58782.0,0.529952]
[1724037190762,0.001822,58783.0,58782.0,0.1727]
[1724037190960,0.001822,58783.0,58782.0,0.529952]
[1724037191161,0.02709618,58783.0,58782.0,0.529952]
[1724037191335,0.02709618,58783.0,58782.0,0.1727]
[1724037191536,0.001822,58783.0,58782.0,0.291784]
[1724037192090,0.12390986,58783.0,58782.0,0.1727]
[1724037192290,0.50643004,58783.0,58782.0,0.1064]
[1724037192488,0.50643004,58783.0,58782.0,0.028]
[1724037193253,0.74459404,58783.0,58782.0,0.028]
[1724037193653,0.50643004,58783.0,58782.0,0.028]
[1724037193875,0.26826604,58783.0,58782.0,0.028]
[1724037194079,0.26826604,58783.0,58782.0,0.1076]
[1724037195660,0.50643004,58783.0,58782.0,0.1076]
[1724037196450,0.50643004,58783.0,58782.0,0.028]
[1724037197825,0.52943004,58783.0,58782.0,0.028]
[1724037198296,0.76759404,58783.0,58782.0,0.028]
[1724037200279,0.76759404,58783.0,58782.0,0.014]
[1724037200479,0.76859404,58783.0,58782.0,0.026]
[1724037200679,0.76759404,58783.0,58782.0,0.012]
[1724037201269,0.76859404,58783.0,58782.0,0.025]
[1724037203493,1.00675804,58783.0,58782.0,0.025]
[1724037203672,1.28378604,58783.0,58782.0,0.025]
[1724037203881,1.38378604,58783.0,58782.0,0.025]
[1724037204285,1.38278604,58783.0,58782.0,0.013]
[1724037204511,0.59548,58776.0,58775.0,0.0009042]
[1724037204726,0.71858088,58776.0,58775.0,0.0009042]
[1724037204978,0.76687675,58776.0,58775.0,0.0009042]
[1724037207411,0.76787675,58776.0,58775.0,0.0089042]
[1724037207645,0.76887675,58776.0,58775.0,0.0159042]
[1724037209772,0.84577675,58776.0,58775.0,0.0159042]
[1724037209975,1.01817253,58776.0,58775.0,0.0159042]
[1724037210641,0.90977675,58776.0,58775.0,0.0159042]
[1724037213029,1.14796875,58776.0,58775.0,0.0159042]
[1724037213230,1.24796875,58776.0,58775.0,0.0159042]
[1724037216058,1.10706875,58776.0,58775.0,0.0159042]
[1724037217067,0.86887675,58776.0,58775.0,0.0159042]
[1724037217263,0.76887675,58776.0,58775.0,0.0159042]
[1724037217461,0.53068475,58776.0,58775.0,0.0159042]
[1724037217918,0.76887675,58776.0,58775.0,0.0159042]
[1724037218242,0.53068475,58776.0,58775.0,0.0159042]
[1724037218497,0.50768475,58776.0,58775.0,0.0971042]
[1724037218658,0.26949275,58776.0,58775.0,0.0971042]
[1724037220553,0.50768475,58776.0,58775.0,0.0971042]
[1724037220757,0.50727519,58776.0,58775.0,0.0971042]
[1724037221311,0.50809719,58776.0,58775.0,0.0971042]
[1724037229346,0.81088919,58776.0,58775.0,0.0159042]
[1724037229547,1.00748119,58776.0,58775.0,0.0159042]
[1724037230152,1.08978119,58776.0,58775.0,0.0159042]
[1724037230588,1.20608119,58776.0,58775.0,0.0159042]
[1724037231618,1.17465721,58776.0,58775.0,0.0159042]
[1724037231843,1.12378119,58776.0,58775.0,0.0159042]
[1724037232398,1.17465721,58776.0,58775.0,0.0159042]
[1724037232600,1.05835721,58776.0,58775.0,0.0159042]
[1724037233126,1.00748119,58776.0,58775.0,0.0159042]
[1724037233335,0.82022634,58776.0,58775.0,0.0963042]
[1724037233540,0.74628919,58776.0,58775.0,0.0963042]
[1724037235099,0.74628919,58776.0,58775.0,0.0159042]
[1724037235519,0.79722634,58776.0,58775.0,0.0159042]
[1724037235725,0.74628919,58776.0,58775.0,0.0159042]
[1724037236257,0.79722634,58776.0,58775.0,0.0159042]
[1724037237334,0.83148919,58776.0,58775.0,0.0159042]
[1724037237801,1.04711396,58776.0,58775.0,0.0159042]
[1724037238237,0.94523966,58776.0,58775.0,0.0159042]
[1724037238448,1.07258254,58776.0,58775.0,0.0159042]
[1724037238668,1.01038254,58776.0,58775.0,0.0159042]
[1724037239100,0.88303966,58776.0,58775.0,0.0159042]
[1724037239507,1.01038254,58776.0,58775.0,0.0159042]
[1724037239705,0.88303966,58776.0,58775.0,0.0796042]
[1724037239897,0.93421591,58776.0,58775.0,0.0796042]
[1724037241060,0.93458665,58776.0,58775.0,0.0796042]
[1724037241263,0.83253462,58776.0,58775.0,0.0796042]
[1724037241935,0.93460233,58776.0,58775.0,0.0796042]
[1724037242395,0.83253462,58776.0,58775.0,0.0796042]
[1724037242641,0.96009966,58776.0,58775.0,0.0796042]
[1724037243859,0.96009966,58776.0,58775.0,0.0159042]
[1724037244445,0.83253462,58776.0,58775.0,0.0159042]
[1724037245474,0.83263132,58776.0,58775.0,0.0159042]
[1724037246357,0.83263132,58776.0,58775.0,0.1521042]
[1724037246358,0.59443932,58776.0,58775.0,0.1521042]
[1724037246566,0.72210535,58776.0,58775.0,0.1521042]
[1724037246938,0.69657028,58776.0,58775.0,0.1521042]
[1724037248652,0.31669184,58776.0,58775.0,0.1521042]
[1724037248854,0.22782395,58776.0,58775.0,0.2712022]
[1724037249305,0.20228848,58776.0,58775.0,0.1521042]
[1724037249672,0.20228863,58776.0,58775.0,0.1521042]
[1724037250681,0.20228863,58776.0,58775.0,0.2712022]
[1724037251892,0.15121875,58776.0,58775.0,0.2712022]
[1724037252470,0.15121875,58776.0,58775.0,0.0159042]
[1724037252471,0.34691957,58776.0,58775.0,0.0159042]
[1724037252671,0.84630357,58776.0,58775.0,0.0159042]
[1724037252852,0.83475874,58776.0,58775.0,0.0159042]
[1724037254347,0.83435172,58776.0,58775.0,0.0159042]
[1724037255537,0.83435172,58776.0,58775.0,0.1602042]
[1724037255538,0.43709879,58776.0,58775.0,0.1602042]
[1724037255788,0.31800279,58776.0,58775.0,0.1602042]
[1724037255948,0.20228382,58776.0,58775.0,0.1602042]
[1724037256329,0.20228382,58776.0,58775.0,0.2793022]
[1724037257310,0.15121875,58776.0,58775.0,0.2793022]
[1724037258834,0.20227653,58776.0,58775.0,0.1602042]
[1724037259598,0.32137253,58776.0,58775.0,0.0159042]
[1724037259811,0.50850675,58776.0,58775.0,0.0159042]
[1724037260649,0.58509808,58776.0,58775.0,0.0159042]
[1724037262306,0.57474076,58776.0,58775.0,0.0159042]
[1724037262486,0.67685633,58776.0,58775.0,0.0159042]
[1724037262860,0.57474076,58776.0,58775.0,0.0159042]
[1724037263279,0.67669343,58776.0,58775.0,0.0159042]
[1724037267781,0.68295087,58776.0,58775.0,0.0159042]
[1724037270622,1.02654287,58776.0,58775.0,0.0159042]
[1724037270827,1.22898137,58776.0,58775.0,0.0159042]
[1724037272553,1.53309015,58776.0,58775.0,0.0159042]
[1724037272749,1.67026283,58776.0,58775.0,0.0159042]
[1724037273162,1.51703258,58776.0,58775.0,0.0159042]
[1724037273384,1.51603258,58776.0,58775.0,0.0079042]
[1724037273597,1.51503258,58776.0,58775.0,0.0029042]
[1724037274024,1.51503258,58776.0,58775.0,0.0009042]
[1724037274462,1.51503258,58776.0,58775.0,0.0039042]
[1724037275528,1.51503258,58776.0,58775.0,0.1479042]
[1724037275529,0.52865658,58776.0,58775.0,0.1479042]
[1724037275743,0.34060537,58776.0,58775.0,0.1479042]
[1724037275869,0.44273393,58776.0,58775.0,0.1479042]
[1724037276416,0.32363793,58776.0,58775.0,0.1479042]
[1724037276821,0.22150937,58776.0,58775.0,0.1479042]
[1724037277073,0.22581527,58776.0,58775.0,0.1479042]
[1724037277766,0.22581527,58776.0,58775.0,0.2670022]
[1724037281084,0.22581527,58776.0,58775.0,0.1479042]
[1724037281238,0.22263454,58776.0,58775.0,0.1479042]
[1724037281642,0.22263454,58776.0,58775.0,0.2670022]
[1724037281868,0.2258182,58776.0,58775.0,0.2670022]
[1724037283630,0.10271732,58776.0,58775.0,0.7433942]
[1724037283849,0.07718183,58776.0,58775.0,0.7433942]
[1724037284051,0.07718183,58776.0,58775.0,0.5051982]
[1724037284226,0.07718183,58776.0,58775.0,0.5046292]
[1724037285248,0.07718183,58776.0,58775.0,0.5036292]
[1724037285448,0.07718183,58776.0,58775.0,0.7418252]
[1724037285651,0.07718183,58776.0,58775.0,0.7428252]
[1724037285860,0.0771826,58776.0,58775.0,0.7428252]
[1724037286062,0.0771826,58776.0,58775.0,0.7468252]
[1724037286270,0.0771826,58776.0,58775.0,0.5086292]
[1724037287275,0.20028348,58776.0,58775.0,0.2704332]
[1724037290384,0.20028463,58776.0,58775.0,0.2704332]
[1724037294806,0.07718375,58776.0,58775.0,0.5086292]
[1724037295220,0.07718594,58776.0,58775.0,0.5086292]
[1724037296212,0.07718594,58776.0,58775.0,0.2704332]
[1724037297278,0.20028682,58776.0,58775.0,0.0073352]
[1724037297498,0.31987349,58776.0,58775.0,0.0073352]
[1724037297698,0.22582483,58776.0,58775.0,0.0073352]
[1724037297899,0.14921875,58776.0,58775.0,0.0073352]
[1724037299909,0.14921875,58776.0,58733.0,0.009042]
[1724037299910,0.22912915,58776.0,58733.0,0.009042]
[1724037300118,0.48528797,58740.0,58733.0,0.009042]
[1724037300322,0.48528797,58740.0,58723.0,0.009042]
[1724037300323,0.596925,58732.0,58723.0,0.009042]
[1724037300534,1.01090719,58732.0,58723.0,0.009042]
[1724037300740,1.11090719,58732.0,58723.0,0.009042]
[1724037300946,1.27683059,58732.0,58723.0,0.009042]
[1724037301152,1.42628233,58732.0,58723.0,0.009042]
[1724037301557,1.30183059,58732.0,58723.0,0.009042]
[1724037301964,1.31917111,58732.0,58723.0,0.009042]
[1724037302164,1.3358643,58732.0,58723.0,0.009042]
[1724037302384,1.27645211,58732.0,58723.0,0.009042]
[1724037302604,1.50412579,58732.0,58723.0,0.009042]
[1724037302787,1.64547803,58732.0,58723.0,0.009042]
[1724037302992,1.66217147,58732.0,58723.0,0.009042]
[1724037303134,1.67417147,58732.0,58731.0,0.0012]
[1724037303343,1.27073836,58732.0,58731.0,0.0021042]
[1724037303550,1.27273836,58732.0,58731.0,0.0021042]
[1724037303750,1.27273745,58732.0,58731.0,0.0021042]
[1724037304176,1.28673745,58732.0,58731.0,0.0031042]
[1724037304380,1.47759138,58732.0,58731.0,0.0031042]
[1724037304745,1.71596138,58732.0,58731.0,0.0031042]
[1724037304946,2.00716138,58732.0,58731.0,0.0031042]
[1724037305338,2.05783249,58732.0,58731.0,0.0031042]
[1724037305967,1.81946249,58732.0,58731.0,0.0031042]
[1724037306187,1.80546249,58732.0,58731.0,0.0021042]
[1724037306345,1.99316138,58732.0,58731.0,0.0021042]
[1724037306545,2.00416138,58732.0,58731.0,0.0021042]
[1724037306742,1.76016002,58732.0,58731.0,0.0021042]
[1724037306952,2.00416076,58732.0,58731.0,0.0021042]
[1724037307329,1.97012749,58732.0,58731.0,0.0021042]
[1724037307937,1.97112749,58732.0,58731.0,0.0021042]
[1724037308293,1.95443578,58732.0,58731.0,0.0021042]
[1724037308500,1.075813,58724.0,58723.0,0.009042]
[1724037308718,1.52151194,58724.0,58723.0,0.009042]
[1724037308937,1.55014322,58724.0,58723.0,0.009042]
[1724037309139,1.65014322,58724.0,58723.0,0.009042]
[1724037309375,1.64451194,58724.0,58723.0,0.009042]
[1724037309748,1.81596313,58724.0,58723.0,0.009042]
[1724037310106,1.81596313,58724.0,58723.0,1e-08]
[1724037310927,1.81596313,58724.0,58711.0,0.0002]
[1724037310928,0.005,58717.0,58711.0,0.0002]
[1724037311152,0.79061947,58717.0,58711.0,0.0002]
[1724037311357,1.4081169,58717.0,58711.0,0.0002]
[1724037311566,1.8306479,58717.0,58711.0,0.0002]
[1724037311770,1.71643814,58717.0,58711.0,0.0002]
[1724037311980,1.42323814,58717.0,58711.0,0.0002]
[1724037312196,0.87764402,58717.0,58711.0,0.0002]
[1724037312407,1.11607502,58717.0,58711.0,0.0002]
[1724037312630,1.13007502,58717.0,58711.0,0.0002]
[1724037313037,1.35450602,58717.0,58711.0,0.0002]
[1724037313192,1.36850602,58717.0,58711.0,0.0002]
[1724037313723,1.11607502,58717.0,58711.0,0.0002]
[1724037313896,1.12707502,58717.0,58711.0,0.0002]
[1724037314286,1.11607502,58717.0,58711.0,0.0002]
[1724037314710,1.13007502,58717.0,58711.0,0.0002]
[1724037315187,1.14307502,58717.0,58711.0,0.0002]
[1724037315818,0.91864402,58717.0,58711.0,0.0002]
[1724037316033,0.17256702,58717.0,58711.0,0.0002]
[1724037316289,0.17256702,58717.0,58716.0,0.072842]
[1724037316529,0.017,58717.0,58716.0,0.072842]
[1724037316919,0.03625587,58717.0,58716.0,0.072842]
[1724037317130,0.014,58717.0,58716.0,0.072842]
[1724037317480,0.003,58717.0,58716.0,0.072842]
[1724037317886,0.001,58718.0,58717.0,0.195215]
[1724037318087,0.001,58718.0,58717.0,0.072]
[1724037318451,0.13250388,58718.0,58717.0,0.062]
[1724037318881,0.001,58725.0,58720.0,0.238416]
[1724037319082,0.000822,58733.0,58719.0,0.238422]
[1724037319083,0.001,58730.0,58721.0,0.00340536]
[1724037319290,0.001,58730.0,58729.0,0.356574]
[1724037319812,0.001,58731.0,58730.0,0.357568]
[1724037320008,0.001,58731.0,58730.0,0.119189]
[1724037320423,0.001,58731.0,58730.0,0.356568]
[1724037320828,0.001,58730.0,58717.0,0.0653]
[1724037321054,0.001,58725.0,58717.0,0.0653]
[1724037321385,0.001,58725.0,58724.0,0.357604]
[1724037321596,0.001,58725.0,58724.0,0.673207]
[1724037321950,0.13063383,58729.0,58726.0,0.238395]
[1724037322139,0.002,58731.0,58730.0,0.119189]
[1724037322559,0.004,58731.0,58730.0,0.119189]
[1724037322759,0.003,58731.0,58730.0,0.119189]
[1724037323366,0.001,58731.0,58730.0,0.119189]
[1724037323567,0.001,58731.0,58730.0,0.357568]
[1724037324326,0.002,58731.0,58730.0,0.364568]
[1724037324708,0.001,58731.0,58730.0,0.982126]
[1724037325867,0.002,58731.0,58730.0,0.989126]
[1724037326006,0.000822,58733.0,58732.0,0.595925]
[1724037329281,0.002822,58733.0,58732.0,0.620925]
[1724037329480,0.001822,58733.0,58732.0,0.609925]
[1724037329688,0.000822,58733.0,58732.0,0.595925]
[1724037329893,0.001822,58733.0,58732.0,0.606925]
[1724037330114,0.002822,58733.0,58732.0,0.620925]
[1724037330320,0.002822,58733.0,58732.0,0.859295]
[1724037330561,0.001822,58733.0,58732.0,0.926095]
[1724037331016,0.001822,58733.0,58732.0,0.929095]
[1724037331862,0.001822,58733.0,58732.0,0.690725]
[1724037332220,0.000822,58733.0,58732.0,0.676725]
[1724037332416,0.001822,58733.0,58732.0,0.687725]
[1724037332652,0.002822,58733.0,58732.0,0.701725]
[1724037332848,0.002822,58733.0,58732.0,0.224985]
[1724037333189,0.001822,58733.0,58732.0,0.119185]
[1724037333395,0.003822,58733.0,58732.0,0.357555]
[1724037333605,0.004822,58733.0,58732.0,0.371555]
[1724037334259,0.004822,58733.0,58732.0,0.133185]
[1724037334864,0.005822,58733.0,58732.0,0.014]
[1724037335453,0.0231491,58733.0,58732.0,0.014]
[1724037335659,0.005822,58733.0,58732.0,0.014]
[1724037335892,0.0231491,58733.0,58732.0,0.014]
[1724037336105,0.005822,58733.0,58732.0,0.014]
[1724037336647,0.0231491,58733.0,58732.0,0.014]
[1724037339019,0.0221491,58733.0,58730.0,0.11959894]
[1724037339219,0.002,58731.0,58730.0,0.11959894]
[1724037339638,0.002,58731.0,58730.0,0.00040994]
[1724037339834,0.0203271,58731.0,58730.0,0.00040994]
[1724037340512,0.0203271,58731.0,58730.0,0.00140994]
[1724037340669,0.26913311,58731.0,58730.0,0.00140994]
[1724037340881,0.50750711,58731.0,58730.0,0.00040994]
[1724037341299,0.51513609,58731.0,58730.0,0.00140994]
[1724037341712,0.6135683,58731.0,58730.0,0.00140994]
[1724037341872,0.8519423,58731.0,58730.0,0.00140994]
[1724037342379,0.77451013,58731.0,58730.0,0.00040994]
[1724037342627,0.53613613,58731.0,58730.0,0.00040994]
[1724037342820,0.53813613,58731.0,58730.0,0.00140994]
[1724037343243,0.79319113,58731.0,58730.0,0.00140994]
[1724037343447,0.56651417,58731.0,58730.0,0.00140994]
[1724037343600,0.002,58721.0,58720.0,0.119209]
[1724037346003,0.003,58721.0,58720.0,0.119209]
[1724037346207,0.003,58721.0,58719.0,0.079]
[1724037346208,0.002,58720.0,58719.0,0.079]
[1724037346613,0.003,58720.0,58719.0,0.198211]
[1724037347246,0.004,58720.0,58719.0,0.119211]
[1724037347448,0.005,58720.0,58719.0,0.119211]
[1724037348622,0.01062935,58720.0,58719.0,0.119211]
[1724037348831,0.01062935,58720.0,58718.0,0.0654]
[1724037349032,0.002,58717.0,58716.0,0.366694]
[1724037349455,0.00762935,58717.0,58716.0,0.366694]
[1724037350563,0.00862935,58717.0,58716.0,0.366694]
[1724037350753,0.00862996,58717.0,58716.0,0.366694]
[1724037350909,0.00962996,58717.0,58716.0,0.366694]
[1724037351106,0.00762996,58717.0,58716.0,0.366694]
[1724037351359,0.00762996,58717.0,58716.0,0.605129]
[1724037351521,0.00762996,58717.0,58716.0,0.366694]
[1724037352466,0.00762996,58717.0,58716.0,0.605129]
[1724037352676,0.00762991,58717.0,58716.0,0.605129]
[1724037352882,0.002,58717.0,58716.0,0.605129]
[1724037353228,0.002,58717.0,58716.0,0.843564]
[1724037353366,0.002,58717.0,58716.0,0.981864]
[1724037354281,0.002,58717.0,58716.0,0.982864]
[1724037354609,0.002,58717.0,58716.0,1.15441854]
[1724037356827,0.002,58717.0,58716.0,1.15241854]
[1724037367536,0.002,58717.0,58716.0,1.15441854]
[1724037371038,0.002,58717.0,58716.0,1.15241854]
[1724037371492,0.002,58717.0,58716.0,1.01511854]
[1724037373552,0.002,58717.0,58716.0,1.01711854]
[1724037373758,0.002,58717.0,58716.0,1.01511854]
[1724037373956,0.002,58717.0,58716.0,1.09791854]
[1724037374768,0.002,58717.0,58716.0,1.09591854]
[1724037377873,0.002,58717.0,58716.0,1.09791854]
[1724037378260,0.002,58717.0,58716.0,1.09591854]
[1724037378785,0.002,58717.0,58716.0,1.09791854]
[1724037378990,0.002,58717.0,58716.0,1.09591854]
[1724037379969,0.002,58717.0,58716.0,0.605129]
[1724037380342,0.002,58717.0,58716.0,0.843564]
[1724037380343,0.01928809,58717.0,58716.0,0.843564]
[1724037380525,0.01928809,58717.0,58716.0,0.605129]
[1724037380526,0.05302913,58717.0,58716.0,0.605129]
[1724037380722,0.07031722,58717.0,58716.0,0.605129]
[1724037381547,0.07594664,58717.0,58716.0,0.605129]
[1724037381889,0.01928809,58717.0,58716.0,0.843564]
[1724037382372,0.01928809,58717.0,58716.0,0.844564]
[1724037382604,0.01928809,58717.0,58716.0,0.843564]
[1724037382820,0.002,58717.0,58716.0,0.844564]
[1724037383036,0.002,58717.0,58716.0,0.985064]
[1724037383238,0.002,58717.0,58716.0,0.745629]
[1724037383638,0.002,58717.0,58716.0,0.605129]
[1724037383871,0.07594943,58717.0,58716.0,0.605129]
[1724037384076,0.07032005,58717.0,58716.0,0.128259]
[1724037384340,0.10569678,58717.0,58716.0,0.009042]
[1724037384628,0.61111816,58717.0,58716.0,0.128259]
[1724037384890,0.61116485,58717.0,58716.0,0.128259]
[1724037385107,0.48354532,58717.0,58716.0,0.128259]
[1724037385347,0.50486037,58717.0,58716.0,0.366694]
[1724037385552,0.1014927,58717.0,58716.0,0.366694]
[1724037385683,0.0249203,58717.0,58716.0,0.366694]
[1724037386455,0.0249203,58717.0,58716.0,0.605129]
[1724037386456,0.1270155,58717.0,58716.0,0.605129]
[1724037386675,0.02492055,58717.0,58716.0,0.605129]
[1724037386894,0.0759681,58717.0,58716.0,0.605129]
[1724037387521,0.10149231,58717.0,58716.0,0.605129]
[1724037387741,0.2053155,58717.0,58716.0,0.366694]
[1724037387887,0.49774296,58717.0,58716.0,0.366694]
[1724037388092,0.62736165,58717.0,58716.0,0.366694]
[1724037388252,0.62736165,58717.0,58716.0,0.128259]
[1724037388720,0.62736165,58717.0,58716.0,0.366694]
[1724037389327,0.60868562,58717.0,58716.0,0.366694]
[1724037389527,0.48106693,58717.0,58716.0,0.366694]
[1724037389780,0.48106693,58717.0,58716.0,0.128259]
[1724037389979,0.48106693,58717.0,58716.0,0.366694]
[1724037389980,0.10148533,58717.0,58716.0,0.366694]
[1724037390213,0.07596454,58717.0,58716.0,0.605129]
[1724037390426,0.07033491,58717.0,58716.0,0.605129]
[1724037390956,0.07033341,58717.0,58716.0,0.605129]
[1724037391566,0.01929092,58717.0,58716.0,0.667329]
[1724037392209,0.0759629,58717.0,58716.0,0.366694]
[1724037392414,0.07596293,58717.0,58716.0,0.366694]
[1724037392818,0.10712044,58717.0,58716.0,0.009042]
[1724037393016,0.10712044,58717.0,58716.0,0.128259]
[1724037393620,0.02392044,58717.0,58716.0,0.128259]
[1724037393825,0.02292044,58717.0,58716.0,0.128259]
[1724037394029,0.02292044,58717.0,58716.0,0.366694]
[1724037394030,0.02392044,58717.0,58716.0,0.366694]
[1724037394233,0.10047923,58717.0,58716.0,0.366694]
[1724037394435,0.02292044,58717.0,58716.0,0.605129]
[1724037394637,0.07396042,58717.0,58716.0,0.366694]
[1724037394809,0.01829092,58717.0,58716.0,0.366694]
[1724037395163,0.01929092,58717.0,58716.0,0.605129]
[1724037395374,0.01829092,58717.0,58716.0,0.605129]
[1724037395586,0.001,58717.0,58716.0,0.605129]
[1724037395796,0.002,58717.0,58716.0,0.605129]
[1724037396054,0.002,58717.0,58716.0,0.667329]
[1724037396256,0.12759877,58725.0,58724.0,0.120201]
[1724037396462,0.12759877,58725.0,58724.0,0.83441]
[1724037396463,0.05666871,58725.0,58724.0,0.83441]
[1724037396695,0.05103998,58726.0,58725.0,0.119199]
[1724037396899,0.10208498,58729.0,58724.0,0.238403]
[1724037396900,0.05103998,58727.0,58726.0,0.119197]
[1724037397109,0.05666854,58727.0,58726.0,0.595987]
[1724037397350,0.00562856,58727.0,58726.0,0.595987]
[1724037397557,0.07655879,58729.0,58728.0,0.119193]
[1724037397558,0.10208498,58729.0,58728.0,0.119193]
[1724037397756,0.52769955,58729.0,58728.0,0.35758]
[1724037398166,0.40009332,58729.0,58728.0,0.595967]
[1724037398407,0.52769955,58729.0,58728.0,0.119193]
[1724037398636,0.40009332,58729.0,58728.0,0.119193]
[1724037398841,0.38341163,58729.0,58728.0,0.119193]
[1724037399033,0.52773197,58729.0,58728.0,0.119193]
[1724037399236,0.51105034,58729.0,58728.0,0.35758]
[1724037399369,0.52773199,58729.0,58728.0,0.35758]
[1724037399716,0.52773464,58729.0,58728.0,0.36758]
[1724037400121,0.52773464,58729.0,58728.0,0.35758]
[1724037400274,0.52873464,58729.0,58728.0,0.36558]
[1724037400677,0.52773464,58729.0,58728.0,0.35758]
[1724037400880,0.40009837,58729.0,58728.0,0.35758]
[1724037401108,0.53046447,58729.0,58728.0,0.129193]
[1724037401287,0.73202814,58729.0,58728.0,0.021]
[1724037401511,0.959187,58729.0,58728.0,0.011]
[1724037401750,0.001,58727.0,58723.0,0.119203]
[1724037401950,0.1021658,58724.0,58723.0,0.119203]
[1724037402175,0.1021658,58724.0,58723.0,0.35761]
[1724037402381,0.11658605,58724.0,58723.0,0.35761]
[1724037402551,0.49438551,58724.0,58723.0,0.35761]
[1724037403077,0.39221971,58724.0,58723.0,0.119203]
[1724037403312,0.53761502,58724.0,58723.0,0.133203]
[1724037403517,0.52092696,58724.0,58723.0,0.133203]
[1724037403758,0.53761509,58724.0,58723.0,0.133203]
[1724037404141,0.53761514,58724.0,58723.0,0.133203]
[1724037404463,0.48900789,58724.0,58723.0,0.014]
[1724037404664,0.48900789,58724.0,58723.0,0.027]
[1724037405455,0.48900756,58724.0,58723.0,0.133203]
[1724037405788,0.57548199,58724.0,58723.0,0.028]
[1724037406002,0.47331971,58724.0,58723.0,0.028]
[1724037406206,0.49000776,58724.0,58723.0,0.028]
[1724037406661,0.61770806,58724.0,58723.0,0.028]
[1724037406861,0.49000776,58724.0,58723.0,0.028]
[1724037407886,0.49000553,58724.0,58723.0,0.028]
[1724037408527,0.49003344,58724.0,58723.0,0.028]
[1724037409511,0.49203344,58724.0,58723.0,0.028]
[1724037409713,0.50373115,58724.0,58723.0,0.028]
[1724037411180,0.65694338,58724.0,58723.0,0.028]
[1724037411437,0.50173115,58724.0,58723.0,0.028]
[1724037411667,0.50173115,58724.0,58723.0,0.0289042]
[1724037411668,0.50373115,58724.0,58723.0,0.0289042]
[1724037412077,0.50372464,58724.0,58723.0,0.0289042]
[1724037412274,0.65693687,58724.0,58723.0,0.0289042]
[1724037412475,0.50372464,58724.0,58723.0,0.0289042]
[1724037413211,0.49768003,58724.0,58723.0,0.0289042]
[1724037413416,0.50937774,58724.0,58723.0,0.0289042]
[1724037416020,0.47537095,58724.0,58723.0,0.0289042]
[1724037416224,0.49767934,58724.0,58723.0,0.0289042]
[1724037416461,0.50937326,58724.0,58723.0,0.0289042]
[1724037416836,0.50937299,58724.0,58723.0,0.0289042]
[1724037417773,0.50937303,58724.0,58723.0,0.0289042]
[1724037418604,0.13152229,58724.0,58723.0,0.0289042]
[1724037418809,0.49567907,58724.0,58723.0,0.0289042]
[1724037419043,0.50737299,58724.0,58723.0,0.0289042]
[1724037419266,0.41757907,58724.0,58723.0,0.2646072]
[1724037419494,0.41657907,58724.0,58723.0,0.56841976]
[1724037419712,0.02205,58724.0,58723.0,0.8034212]
[1724037419969,0.12414825,58724.0,58723.0,0.8034212]
[1724037420209,0.02205,58724.0,58723.0,0.8034212]
[1724037420618,0.12414825,58724.0,58723.0,0.5030142]
[1724037420820,0.16635021,58724.0,58723.0,0.5030142]
[1724037421102,0.16635021,58724.0,58723.0,0.3865142]
[1724037421103,0.54416461,58724.0,58723.0,0.3865142]
[1724037421314,0.39986741,58724.0,58723.0,0.3865142]
[1724037422908,0.39986306,58724.0,58723.0,0.3865142]
[1724037424649,0.52748781,58724.0,58723.0,0.3865142]
[1724037424854,0.39986306,58724.0,58723.0,0.3865142]
[1724037425678,0.54517099,58724.0,58723.0,0.0289042]
[1724037425849,0.41754169,58724.0,58723.0,0.0289042]
[1724037426098,0.41954169,58724.0,58723.0,0.0289042]
[1724037427041,0.5471703,58724.0,58723.0,0.0289042]
[1724037427256,0.41954169,58724.0,58723.0,0.0289042]